Workbook

Sheet 2019
C2: ΦΥΤΩΡΙΑ ΚΡΗΤΗΣ AΝΩΝΥΜΟΣ ΕΤΑΙΡΙΑ
C3: ΙΣΟΛΟΓΙΣΜΟΣ ΤΗΣ 31ης ΔΕΚΕΜΒΡΙΟΥ 2019- 13η ΕΤΑΙΡΙΚΗ ΧΡΗΣΗ (1.7.2019 – 31.12.2019) ΑΡ.ΓΕΜΗ 77764427000
C6: ΕΝΕΡΓΗΤΙΚΟ | I6: Χρήση 2019 | L6: Χρήση 6-2019 | O6: ΠΑΘΗΤΙΚΟ | Q6: Χρήση 2019 | S6: Χρήση 6-2019
C7: ΜΗ ΚΥΚΛΟΦΟΡΟΥΝΤΑ ΠΕΡΟΥΣΙΑΚΑ ΣΤΟΙΧΕΙΑ | O7: ΚΑΘΑΡΗ ΘΕΣΗ
C8: Ενσώματα πάγια | O8: Καταβεβλημένα κεφάλαια
C9: Ακίνητα | I9: 217972.99 | L9: 224358.12 | O9: Κεφάλαιο | Q9: 250000 | S9: 250000
C10: Μηχανολογικός εξοπλισμός | I10: 37571.64 | L10: 41071.28 | O10: Σύνολο | Q10: =SUM(Q9) -> 250000 | S10: =SUM(S9) -> 250000
C11: Λοιπός εξοπλισμός | I11: 17915.98 | L11: 11101.94 | O11: Αποθεματικά και αποτελέσματα σε νέο
C12: Σύνολο | I12: =SUM(I9:I11) -> 273460.61 | L12: =SUM(L9:L11) -> 276531.34 | O12: Αποθεματικά νόμων ή καταστατικού | Q12: 68296.97 | S12: 71187.31
C13: Άυλα πάγια | O13: Αποτελέσματα σε νέο | Q13: 70282.2 | S13: 60535.28
C14: Λοιπά άυλα | I14: 0.01 | L14: 0.01 | O14: Σύνολο | Q14: =SUM(Q12:Q13) -> 138579.17 | S14: =SUM(S12:S13) -> 131722.59
C15: Σύνολο | I15: =SUM(I14) -> 0.01 | L15: =SUM(L14) -> 0.01 | O15: ΣΥΝΟΛΟ ΚΑΘΑΡΗΣ ΘΕΣΗΣ | Q15: =SUM(Q14+Q10) -> 388579.17 | S15: =SUM(S14+S10) -> 381722.59
C16: Χρηματοοικονομικά περουσιακά στοιχεία | O16: ΥΠΟΧΡΕΩΣΕΙΣ
C17: Λοιποί συμμετοχικοί τίτλοι | I17: 0 | L17: 0 | O17: Μακροπρόθεσμες υποχρεώσεις
C18: Σύνολο | I18: =SUM(I17) -> 0 | L18: =SUM(L17) -> 0 | O18: Δάνεια | Q18: 0 | S18: 0
C19: ΣΥΝΟΛΟ ΜΗ ΚΥΚΛΟΦΟΡΟΥΝΤΩΝ | I19: =SUM(I18+I12+I15) -> 273460.62 | L19: =SUM(L18+L12+L15) -> 276531.35 | O19: Σύνολο | Q19: =SUM(Q18) -> 0 | S19: =SUM(S18) -> 0
C20: ΚΥΚΛΟΦΟΡΟΥΝΤΑ ΠΕΡΟΥΣΙΑΚΑ ΣΟΙΧΕΙΑ | O20: Βραχυπρόθεσμες υποχρεώσεις
C21: Αποθέματα | O21: Τραπεζικά δάνεια | Q21: 0 | S21: 0
C22: Εμπορεύματα | I22: 295233.7 | L22: 544719.35 | O22: Εμπορικές υποχρεώσεις | Q22: 662025.17 | S22: 682898.84
C23: Σύνολο | I23: =SUM(I22) -> 295233.7 | L23: =SUM(L22) -> 544719.35 | O23: Φόρος εισοδήματος | Q23: 19258.28 | S23: 6044.48
C24: Χρηματοοικονομικά στοιχεία και προκαταβολές | O24: Λοιποί φόροι και τέλη | Q24: 2371.38 | S24: 14911.56
C25: Εμπορικές απαιτήσεις | I25: 559521.11 | L25: 487815.22 | O25: Οργανισμοί κοινωνικής ασφάλισης | Q25: 13141.76 | S25: 6942.37
C26: Μεταβατικοί λογαριασμοί ενεργητικού | I26: 15244.86 | L26: 1628.59
C27: Ταμειακά διαθέσιμα και ισοδύναμα | I27: 255112.15 | L27: 161727.72 | O27: Λοιπές υποχρεώσεις | Q27: 313196.68 | S27: 379902.39
C28: Σύνολο | I28: =SUM(I25:I27) -> 829878.12 | L28: =SUM(L25:L27) -> 651171.53 | O28: Σύνολο | Q28: =SUM(Q21:Q27) -> 1009993.27 | S28: =SUM(S21:S27) -> 1090699.64
C29: ΣΥΝΟΛΟ ΚΥΚΛΟΦΟΡΟΥΝΤΩΝ | I29: =SUM(I28+I23) -> 1125111.82 | L29: =SUM(L28+L23) -> 1195890.88 | O29: ΣΥΝΟΛΟ ΥΠΟΧΡΕΩΣΕΩΝ | Q29: =SUM(Q28+Q19) -> 1009993.27 | S29: =SUM(S28+S19) -> 1090699.64
C30: ΣΥΝΟΛΟ ΕΝΕΡΓΗΤΙΚΟΥ | I30: =SUM(I29+I19) -> 1398572.44 | L30: =SUM(L29+L19) -> 1472422.23 | O30: ΣΥΝΟΛΟ ΚΑΘΑΡΗΣ ΘΕΣΗΣ ΚΑΙ ΥΠΟΧΡΕΩΣΕΩΝ | Q30: =SUM(Q29+Q15) -> 1398572.44 | S30: =SUM(S29+S15) -> 1472422.23
B31: ΑΠΟΤΕΛΕΣΜΑΤΑ ΧΡΗΣΗΣ ΕΛΠ | O31: ΠΙΝΑΚΑΣ ΔΙΑΘΕΣΕΩΣ ΑΠΟΤΕΛΕΣΜΑΤΩΝ
I33: Χρήση 2019 | L33: Χρήση 6-2019 | Q33: Χρήση 2019 | S33: Χρήση 6-2019
C34: Κύκλος εργασιών (καθαρός) | I34: 895321.13 | L34: 1064885.35 | O34: Καθαρά αποτ/ματα(κέρδη)χρήσεως | Q34: 15478.68 | S34: 20843.04
C35: Μεταβολές αποθεμάτων (εμπορεύματα-προϊόντα) | I35: 249485.65 | L35: 149206.5 | O35: Φόρος εισοδήματος | Q35: 3714.88 | S35: 6044.48
C36: Αγορές εμπορευμάτων | I36: 237275.54 | L36: 758864.69 | O36: Τακτικό αποθεματικό | Q36: 588.19 | S36: 739.93
C37: Παροχές σε εργαζόμενους | I37: 144789.25 | L37: 195292.71
C38: Αποσβέσεις | I38: 11823.77 | L38: 19305.3 | O38: Κέρδη προς διάθεση | Q38: =Q34-Q35-Q36 -> 11175.61 | S38: =S34-S35-S36 -> 14058.63
C39: Λοιπά έξοδα και ζημιές | I39: 239278.92 | L39: 225625.18 | O39: Η διάθεση των κερδών γίνεται ως εξής:
C40: Λοιπά έσοδα και κέρδη | I40: 3574.1 | L40: 7677.05 | O40: Υπόλοιπο κερδών προηγ.χρήσεων | Q40: 59106.59 | S40: 46476.65
C41: Πιστωτικοι τοκοι | I41: 262.39 | L41: 24.91 | O41: Υπόλοιπο κερδών σε νέο χρήσης | Q41: 11175.61 | S41: 14058.63
C42: Αποτελέσματα προ τόκων και φόρων | I42: =SUM(I34-I35-I36-I37-I38-I39+I40+I41) -> 16504.49 | L42: 22705.93 | O42: Σύνολο: Υπόλοιπο κερδών σε νέο | Q42: =SUM(Q40:Q41) -> 70282.2 | S42: =SUM(S40:S41) -> 60535.28
C43: Χρεωστικοί τόκοι | I43: 1025.81 | L43: 1862.89
C44: Αποτελέσματα προ φόρων | I44: =SUM(I42-I43) -> 15478.68 | L44: 20843.04
C45: Φόροι εισοδήματος | I45: 3714.88 | L45: 6044.48 | O45: Ηράκλειο, 30 Απριλιου 2020
C46: Αποτελέσματα περιόδου μετά από φόρους | I46: =I44-I45 -> 11763.8 | L46: =L44-L45 -> 14798.56 | O46: Η Πρόεδρος του Δ.Σ. | R46: Η Αντιπρόεδρος του Δ.Σ.
O47: ΠΑΠΑΔΟΓΙΑΝΝΑΚΗ ΑΡΓΥΡΩ | R47: ΠΑΠΑΔΟΓΙΑΝΝΑΚΗ ΜΑΡΙΑ
O48: ΑΔΤ ΑΕ 456745 | R48: ΑΔΤ ΑΒ 959863
O49: Ο Λογιστής
O50: ΦΑΣΟΥΛΑΚΗ ΜΑΡΙΑ - ΑΡ.Αδ. 79330

Sheet 2018
C2: ΦΥΤΩΡΙΑ ΚΡΗΤΗΣ AΝΩΝΥΜΟΣ ΕΤΑΙΡΙΑ
C3: ΙΣΟΛΟΓΙΣΜΟΣ ΤΗΣ 30ης ΙΟΥΝΙΟΥ 2019- 12η ΕΤΑΙΡΙΚΗ ΧΡΗΣΗ (1.7.2018 – 30.6.2019) ΑΡ.ΓΕΜΗ 77764427000
C6: ΕΝΕΡΓΗΤΙΚΟ | I6: Χρήση 2019 | L6: Χρήση 2018 | O6: ΠΑΘΗΤΙΚΟ | Q6: Χρήση 2019 | S6: Χρήση 2018
C7: ΜΗ ΚΥΚΛΟΦΟΡΟΥΝΤΑ ΠΕΡΟΥΣΙΑΚΑ ΣΤΟΙΧΕΙΑ | O7: ΚΑΘΑΡΗ ΘΕΣΗ
C8: Ενσώματα πάγια | O8: Καταβεβλημένα κεφάλαια
C9: Ακίνητα | I9: 224358.12 | L9: 237128.38 | O9: Κεφάλαιο | Q9: 250000 | S9: 250000
C10: Μηχανολογικός εξοπλισμός | I10: 41071.28 | L10: 2873.03 | O10: Σύνολο | Q10: =SUM(Q9) -> 250000 | S10: =SUM(S9) -> 250000
C11: Λοιπός εξοπλισμός | I11: 11101.94 | L11: 6887.95 | O11: Αποθεματικά και αποτελέσματα σε νέο
C12: Σύνολο | I12: =SUM(I9:I11) -> 276531.34 | L12: =SUM(L9:L11) -> 246889.36 | O12: Αποθεματικά νόμων ή καταστατικού | Q12: 71187.31 | S12: 77404.44
C13: Άυλα πάγια | O13: Αποτελέσματα σε νέο | Q13: 60535.28 | S13: 47069.41
C14: Λοιπά άυλα | I14: 0.01 | L14: 0.01 | O14: Σύνολο | Q14: =SUM(Q12:Q13) -> 131722.59 | S14: =SUM(S12:S13) -> 124473.85
C15: Σύνολο | I15: =SUM(I14) -> 0.01 | L15: =SUM(L14) -> 0.01 | O15: ΣΥΝΟΛΟ ΚΑΘΑΡΗΣ ΘΕΣΗΣ | Q15: =SUM(Q14+Q10) -> 381722.59 | S15: =SUM(S14+S10) -> 374473.85
C16: Χρηματοοικονομικά περουσιακά στοιχεία | O16: ΥΠΟΧΡΕΩΣΕΙΣ
C17: Λοιποί συμμετοχικοί τίτλοι | I17: 0 | L17: 0 | O17: Μακροπρόθεσμες υποχρεώσεις
C18: Σύνολο | I18: =SUM(I17) -> 0 | L18: =SUM(L17) -> 0 | O18: Δάνεια | Q18: 0 | S18: 0
C19: ΣΥΝΟΛΟ ΜΗ ΚΥΚΛΟΦΟΡΟΥΝΤΩΝ | I19: =SUM(I18+I12+I15) -> 276531.35 | L19: =SUM(L18+L12+L15) -> 246889.37 | O19: Σύνολο | Q19: =SUM(Q18) -> 0 | S19: =SUM(S18) -> 0
C20: ΚΥΚΛΟΦΟΡΟΥΝΤΑ ΠΕΡΟΥΣΙΑΚΑ ΣΟΙΧΕΙΑ | O20: Βραχυπρόθεσμες υποχρεώσεις
C21: Αποθέματα | O21: Τραπεζικά δάνεια | Q21: 0 | S21: 0
C22: Εμπορεύματα | I22: 544719.35 | L22: 395512.85 | O22: Εμπορικές υποχρεώσεις | Q22: 682898.84 | S22: 338297.85
C23: Σύνολο | I23: =SUM(I22) -> 544719.35 | L23: =SUM(L22) -> 395512.85 | O23: Φόρος εισοδήματος | Q23: 6044.48 | S23: 1961.57
C24: Χρηματοοικονομικά στοιχεία και προκαταβολές | O24: Λοιποί φόροι και τέλη | Q24: 14911.56 | S24: 11762.06
C25: Εμπορικές απαιτήσεις | I25: 487815.22 | L25: 291074.17 | O25: Οργανισμοί κοινωνικής ασφάλισης | Q25: 6942.37 | S25: 2142.01
C26: Μεταβατικοί λογαριασμοί ενεργητικού | I26: 1628.59 | L26: 536.33
C27: Ταμειακά διαθέσιμα και ισοδύναμα | I27: 161727.72 | L27: 41359.19 | O27: Λοιπές υποχρεώσεις | Q27: 379902.39 | S27: 246734.57
C28: Σύνολο | I28: =SUM(I25:I27) -> 651171.53 | L28: =SUM(L25:L27) -> 332969.69 | O28: Σύνολο | Q28: =SUM(Q21:Q27) -> 1090699.64 | S28: =SUM(S21:S27) -> 600898.06
C29: ΣΥΝΟΛΟ ΚΥΚΛΟΦΟΡΟΥΝΤΩΝ | I29: =SUM(I28+I23) -> 1195890.88 | L29: =SUM(L28+L23) -> 728482.54 | O29: ΣΥΝΟΛΟ ΥΠΟΧΡΕΩΣΕΩΝ | Q29: =SUM(Q28+Q19) -> 1090699.64 | S29: =SUM(S28+S19) -> 600898.06
C30: ΣΥΝΟΛΟ ΕΝΕΡΓΗΤΙΚΟΥ | I30: =SUM(I29+I19) -> 1472422.23 | L30: =SUM(L29+L19) -> 975371.91 | O30: ΣΥΝΟΛΟ ΚΑΘΑΡΗΣ ΘΕΣΗΣ ΚΑΙ ΥΠΟΧΡΕΩΣΕΩΝ | Q30: =SUM(Q29+Q15) -> 1472422.23 | S30: =SUM(S29+S15) -> 975371.91
B31: ΑΠΟΤΕΛΕΣΜΑΤΑ ΧΡΗΣΗΣ ΕΛΠ | O31: ΠΙΝΑΚΑΣ ΔΙΑΘΕΣΕΩΣ ΑΠΟΤΕΛΕΣΜΑΤΩΝ
I33: Χρήση 2019 | L33: Χρήση 2018 | Q33: Χρήση 2019 | S33: Χρήση 2018
C34: Κύκλος εργασιών (καθαρός) | I34: 1064885.35 | L34: 261866.06 | O34: Καθαρά αποτ/ματα(κέρδη)χρήσεως | Q34: 20843.04 | S34: 6764.04
C35: Μεταβολές αποθεμάτων (εμπορεύματα-προϊόντα) | I35: 149206.5 | L35: 982.71 | O35: Φόρος εισοδήματος | Q35: 6044.48 | S35: 1961.57
C36: Αγορές εμπορευμάτων | I36: 758864.69 | L36: 117533.26 | O36: Τακτικό αποθεματικό | Q36: 739.93 | S36: 240.12
C37: Παροχές σε εργαζόμενους | I37: 195292.71 | L37: 93641.62
C38: Αποσβέσεις | I38: 19305.3 | L38: 17800.71 | O38: Κέρδη προς διάθεση | Q38: =Q34-Q35-Q36 -> 14058.63 | S38: =S34-S35-S36 -> 4562.35
C39: Λοιπά έξοδα και ζημιές | I39: 225625.18 | L39: 30547.46 | O39: Η διάθεση των κερδών γίνεται ως εξής:
C40: Λοιπά έσοδα και κέρδη | I40: 7677.05 | L40: 6957.06 | O40: Υπόλοιπο κερδών προηγ.χρήσεων | Q40: 46476.65 | S40: 42507.06
C41: Πιστωτικοι τοκοι | I41: 24.91 | L41: 0 | O41: Υπόλοιπο κερδών σε νέο χρήσης | Q41: 14058.63 | S41: 4562.35
C42: Αποτελέσματα προ τόκων και φόρων | I42: 22705.93 | L42: 8317.36 | O42: Σύνολο: Υπόλοιπο κερδών σε νέο | Q42: =SUM(Q40:Q41) -> 60535.28 | S42: =SUM(S40:S41) -> 47069.41
C43: Χρεωστικοί τόκοι | I43: 1862.89 | L43: 1553.32
C44: Αποτελέσματα προ φόρων | I44: 20843.04 | L44: =L42-L43 -> 6764.04
C45: Φόροι εισοδήματος | I45: 6044.48 | L45: 1961.57 | O45: Ηράκλειο, 31 Οκτωβριου 2019
C46: Αποτελέσματα περιόδου μετά από φόρους | I46: =I44-I45 -> 14798.56 | L46: =L44-L45 -> 4802.47 | O46: Η Πρόεδρος του Δ.Σ. | R46: Η Αντιπρόεδρος του Δ.Σ.
O47: ΠΑΠΑΔΟΓΙΑΝΝΑΚΗ ΑΡΓΥΡΩ | R47: ΠΑΠΑΔΟΓΙΑΝΝΑΚΗ ΜΑΡΙΑ
O48: ΑΔΤ ΑΕ 456745 | R48: ΑΔΤ ΑΒ 959863
O49: Ο Λογιστής
O50: ΦΑΣΟΥΛΑΚΗ ΜΑΡΙΑ - ΑΡ.Αδ. 79330

Sheet 2017
C2: MY PLANTS A.E.
C3: ΙΣΟΛΟΓΙΣΜΟΣ ΤΗΣ 30ης ΙΟΥΝΙΟΥ 2018- 11η ΕΤΑΙΡΙΚΗ ΧΡΗΣΗ (1.7.2017 – 30.6.2018) ΑΡ.ΓΕΜΗ 77764427000
C6: ΕΝΕΡΓΗΤΙΚΟ | I6: Χρήση 2018 | O6: Χρήση 2017 | R6: ΠΑΘΗΤΙΚΟ | T6: Χρήση 2018 | V6: Χρήση 2017
C7: ΜΗ ΚΥΚΛΟΦΟΡΟΥΝΤΑ ΠΕΡΟΥΣΙΑΚΑ ΣΤΟΙΧΕΙΑ | R7: ΚΑΘΑΡΗ ΘΕΣΗ
C8: Ενσώματα πάγια | R8: Καταβεβλημένα κεφάλαια
C9: Ακίνητα | I9: 237128.38 | O9: 247180.72 | R9: Κεφάλαιο | T9: 250000 | V9: 250000
C10: Μηχανολογικός εξοπλισμός | I10: 2873.03 | O10: 4815.84 | R10: Σύνολο | T10: =SUM(T9) -> 250000 | V10: =SUM(V9) -> 250000
C11: Λοιπός εξοπλισμός | I11: 6887.95 | O11: 12693.51 | R11: Αποθεματικά και αποτελέσματα σε νέο
C12: Σύνολο | I12: =SUM(I9:I11) -> 246889.36 | O12: =SUM(O9:O11) -> 264690.07 | R12: Αποθεματικά νόμων ή καταστατικού | T12: 77404.44 | V12: 84121.36
C13: Άυλα πάγια | R13: Αποτελέσματα σε νέο | T13: 47069.41 | V13: 42507.06
C14: Λοιπά άυλα | I14: 0.01 | O14: 0.01 | R14: Σύνολο | T14: =SUM(T12:T13) -> 124473.85 | V14: =SUM(V12:V13) -> 126628.42
C15: Σύνολο | I15: =SUM(I14) -> 0.01 | O15: =SUM(O14) -> 0.01 | R15: ΣΥΝΟΛΟ ΚΑΘΑΡΗΣ ΘΕΣΗΣ | T15: =SUM(T14+T10) -> 374473.85 | V15: =SUM(V14+V10) -> 376628.42
C16: Χρηματοοικονομικά περουσιακά στοιχεία | R16: ΥΠΟΧΡΕΩΣΕΙΣ
C17: Λοιποί συμμετοχικοί τίτλοι | I17: 0 | O17: 0 | R17: Μακροπρόθεσμες υποχρεώσεις
C18: Σύνολο | I18: =SUM(I17) -> 0 | O18: =SUM(O17) -> 0 | R18: Δάνεια | T18: 0 | V18: 0
C19: ΣΥΝΟΛΟ ΜΗ ΚΥΚΛΟΦΟΡΟΥΝΤΩΝ | I19: =SUM(I18+I12+I15) -> 246889.37 | O19: =SUM(O18+O12+O15) -> 264690.08 | R19: Σύνολο | T19: =SUM(T18) -> 0 | V19: =SUM(V18) -> 0
C20: ΚΥΚΛΟΦΟΡΟΥΝΤΑ ΠΕΡΟΥΣΙΑΚΑ ΣΟΙΧΕΙΑ | R20: Βραχυπρόθεσμες υποχρεώσεις
C21: Αποθέματα | R21: Τραπεζικά δάνεια | T21: 0 | V21: 7753.04
C22: Εμπορεύματα | I22: 395512.85 | O22: 396495.56 | R22: Εμπορικές υποχρεώσεις | T22: 338297.85 | V22: 339038.23
C23: Σύνολο | I23: =SUM(I22) -> 395512.85 | O23: =SUM(O22) -> 396495.56 | R23: Φόρος εισοδήματος | T23: 1961.57 | V23: 3425.81
C24: Χρηματοοικονομικά στοιχεία και προκαταβολές | R24: Λοιποί φόροι και τέλη | T24: 11762.06 | V24: 11076.55
C25: Εμπορικές απαιτήσεις | I25: 291074.17 | O25: 318373.45 | R25: Οργανισμοί κοινωνικής ασφάλισης | T25: 2142.01 | V25: 2036.99
C26: Μεταβατικοί λογαριασμοί ενεργητικού | I26: 536.33 | O26: 366.69
C27: Ταμειακά διαθέσιμα και ισοδύναμα | I27: 41359.19 | O27: 19308.27 | R27: Λοιπές υποχρεώσεις | T27: 246734.57 | V27: 259275.01
C28: Σύνολο | I28: =SUM(I25:I27) -> 332969.69 | O28: =SUM(O25:O27) -> 338048.41 | R28: Σύνολο | T28: =SUM(T21:T27) -> 600898.06 | V28: =SUM(V21:V27) -> 622605.63
C29: ΣΥΝΟΛΟ ΚΥΚΛΟΦΟΡΟΥΝΤΩΝ | I29: =SUM(I28+I23) -> 728482.54 | O29: =SUM(O28+O23) -> 734543.97 | R29: ΣΥΝΟΛΟ ΥΠΟΧΡΕΩΣΕΩΝ | T29: =SUM(T28+T19) -> 600898.06 | V29: =SUM(V28+V19) -> 622605.63
C30: ΣΥΝΟΛΟ ΕΝΕΡΓΗΤΙΚΟΥ | I30: =SUM(I29+I19) -> 975371.91 | O30: =SUM(O29+O19) -> 999234.05 | R30: ΣΥΝΟΛΟ ΚΑΘΑΡΗΣ ΘΕΣΗΣ ΚΑΙ ΥΠΟΧΡΕΩΣΕΩΝ | T30: =SUM(T29+T15) -> 975371.91 | V30: =SUM(V29+V15) -> 999234.05
B31: ΑΠΟΤΕΛΕΣΜΑΤΑ ΧΡΗΣΗΣ ΕΛΠ | R31: ΠΙΝΑΚΑΣ ΔΙΑΘΕΣΕΩΣ ΑΠΟΤΕΛΕΣΜΑΤΩΝ
I33: Χρήση 2018 | O33: Χρήση 2017 | T33: Χρήση 2018 | V33: Χρήση 2017
C34: Κύκλος εργασιών (καθαρός) | I34: 261866.06 | O34: 312055.78 | R34: Καθαρά αποτ/ματα(κέρδη)χρήσεως | T34: 6764.04 | V34: 9213.15
C35: Μεταβολές αποθεμάτων (εμπορεύματα-προϊόντα) | I35: 982.71 | O35: -21852.5 | R35: Φόρος εισοδήματος | T35: 1961.57 | V35: 3425.81
C36: Αγορές εμπορευμάτων | I36: 117533.26 | O36: 119515.74 | R36: Τακτικό αποθεματικό | T36: 240.12 | V36: 327.07
C37: Παροχές σε εργαζόμενους | I37: 93641.62 | O37: 96678.59
C38: Αποσβέσεις | I38: 17800.71 | O38: 18497.08 | R38: Κέρδη προς διάθεση | T38: =T34-T35-T36 -> 4562.35 | V38: =V34-V35-V36 -> 5460.27
C39: Λοιπά έξοδα και ζημιές | I39: 30547.46 | O39: 48709.29 | R39: Η διάθεση των κερδών γίνεται ως εξής:
C40: Λοιπά έσοδα και κέρδη | I40: 6957.06 | O40: 6957.06 | R40: Υπόλοιπο κερδών προηγ.χρήσεων | T40: 42507.06 | V40: 37046.79
C41: Αποτελέσματα προ τόκων και φόρων | I41: 8317.36 | O41: =O34+O35-O36-O37-O38-O39+O40 -> 13759.64 | R41: Υπόλοιπο κερδών σε νέο χρήσης | T41: 4562.35 | V41: 5460.27
C42: Χρεωστικοί τόκοι | I42: 1553.32 | O42: 4546.49 | R42: Σύνολο: Υπόλοιπο κερδών σε νέο | T42: =SUM(T40:T41) -> 47069.41 | V42: =SUM(V40:V41) -> 42507.06
C43: Αποτελέσματα προ φόρων | I43: =I41-I42 -> 6764.04 | O43: =O41-O42 -> 9213.15
C44: Φόροι εισοδήματος | I44: 1961.57 | O44: 3425.81
C45: Αποτελέσματα περιόδου μετά από φόρους | I45: =I43-I44 -> 4802.47 | O45: =O43-O44 -> 5787.34 | R45: Ηράκλειο, 30 Οκτωβρίου 2018
R46: Ο Πρόεδρος του Δ.Σ. | U46: Η Αντιπρόεδρος του Δ.Σ.
R47: ΠΑΠΑΔΟΓΙΑΝΝΑΚΗ ΑΡΓΥΡΩ | U47: ΠΑΠΑΔΟΓΙΑΝΝΑΚΗ ΜΑΡΙΑ
R48: ΑΔΤ ΑΕ 456745 | U48: ΑΔΤ ΑΒ 959863
R49: Ο Λογιστής
R50: ΦΑΣΟΥΛΑΚΗ ΜΑΡΙΑ - ΑΡ.Αδ. 79330

Sheet 2016
C3: MY PLANTS A.E.
C4: ΙΣΟΛΟΓΙΣΜΟΣ ΤΗΣ 30ης ΙΟΥΝΙΟΥ 2016- 9η ΕΤΑΙΡΙΚΗ ΧΡΗΣΗ (1.7.2015 – 30.6.2016) ΑΡ.Μ.Α.Ε. 62819/70/Β/07/29
C7: ΕΝΕΡΓΗΤΙΚΟ | I7: Χρήση 2016 | O7: Χρήση 2015 | R7: ΠΑΘΗΤΙΚΟ | T7: Χρήση 2016 | V7: Χρήση 2015
C8: ΜΗ ΚΥΚΛΟΦΟΡΟΥΝΤΑ ΠΕΡΟΥΣΙΑΚΑ ΣΤΟΙΧΕΙΑ | R8: ΚΑΘΑΡΗ ΘΕΣΗ
C9: Ενσώματα πάγια | R9: Καταβεβλημένα κεφάλαια
C10: Ακίνητα | I10: 257233.06 | O10: 267285.4 | R10: Κεφάλαιο | T10: 250000 | V10: 250000
C11: Μηχανολογικός εξοπλισμός | I11: 6758.65 | O11: 8701.46 | R11: Σύνολο | T11: =SUM(T10) -> 250000 | V11: =SUM(V10) -> 250000
C12: Λοιπός εξοπλισμός | I12: 18413.18 | O12: 24745.38 | R12: Αποθεματικά και αποτελέσματα σε νέο
C13: Σύνολο | I13: =SUM(I10:I12) -> 282404.89 | O13: =SUM(O10:O12) -> 300732.24 | R13: Αποθεματικά νόμων ή καταστατικού | T13: 90751.35 | V13: 48027.86
C14: Άυλα πάγια | R14: Αποτελέσματα σε νέο | T14: 37046.79 | V14: 33273.19
C15: Λοιπά άυλα | I15: 0.01 | O15: 0.01 | R15: Σύνολο | T15: =SUM(T13:T14) -> 127798.14 | V15: =SUM(V13:V14) -> 81301.05
C16: Σύνολο | I16: =SUM(I15) -> 0.01 | O16: =SUM(O15) -> 0.01 | R16: ΣΥΝΟΛΟ ΚΑΘΑΡΗΣ ΘΕΣΗΣ | T16: =SUM(T15+T11) -> 377798.14 | V16: =SUM(V15+V11) -> 331301.05
C17: Χρηματοοικονομικά περουσιακά στοιχεία | R17: ΥΠΟΧΡΕΩΣΕΙΣ
C18: Λοιποί συμμετοχικοί τίτλοι | I18: 0 | O18: 0 | R18: Μακροπρόθεσμες υποχρεώσεις
C19: Σύνολο | I19: =SUM(I18) -> 0 | O19: =SUM(O18) -> 0 | R19: Δάνεια | T19: 0 | V19: 0
C20: ΣΥΝΟΛΟ ΜΗ ΚΥΚΛΟΦΟΡΟΥΝΤΩΝ | I20: =SUM(I19+I13+I16) -> 282404.9 | O20: =SUM(O19+O13+O16) -> 300732.25 | R20: Σύνολο | T20: =SUM(T19) -> 0 | V20: =SUM(V19) -> 0
C21: ΚΥΚΛΟΦΟΡΟΥΝΤΑ ΠΕΡΟΥΣΙΑΚΑ ΣΟΙΧΕΙΑ | R21: Βραχυπρόθεσμες υποχρεώσεις
C22: Αποθέματα | R22: Τραπεζικά δάνεια | T22: 29830.82 | V22: 69171.48
C23: Εμπορεύματα | I23: 418348.06 | O23: 446111.22 | R23: Εμπορικές υποχρεώσεις | T23: 321722.98 | V23: 346367.55
C24: Σύνολο | I24: =SUM(I23) -> 418348.06 | O24: =SUM(O23) -> 446111.22 | R24: Φόρος εισοδήματος | T24: 1602.01 | V24: 617.38
C25: Χρηματοοικονομικά στοιχεία και προκαταβολές | R25: Λοιποί φόροι και τέλη | T25: 4020.19 | V25: 5436.57
C26: Εμπορικές απαιτήσεις | I26: 312157.63 | O26: 349145.29 | R26: Οργανισμοί κοινωνικής ασφάλισης | T26: 1257.49 | V26: 1959.74
C27: Ταμειακά διαθέσιμα και ισοδύναμα | I27: 17899.46 | O27: 17707.25 | R27: Λοιπές υποχρεώσεις | T27: 294578.42 | V27: 358842.24
C28: Σύνολο | I28: =SUM(I26:I27) -> 330057.09 | O28: =SUM(O26:O27) -> 366852.54 | R28: Σύνολο | T28: =SUM(T22:T27) -> 653011.91 | V28: =SUM(V22:V27) -> 782394.96
C29: ΣΥΝΟΛΟ ΚΥΚΛΟΦΟΡΟΥΝΤΩΝ | I29: =SUM(I28+I24) -> 748405.15 | O29: =SUM(O28+O24) -> 812963.76 | R29: ΣΥΝΟΛΟ ΥΠΟΧΡΕΩΣΕΩΝ | T29: =SUM(T28+T20) -> 653011.91 | V29: =SUM(V28+V20) -> 782394.96
C30: ΣΥΝΟΛΟ ΕΝΕΡΓΗΤΙΚΟΥ | I30: =SUM(I29+I20) -> 1030810.05 | O30: =SUM(O29+O20) -> 1113696.01 | R30: ΣΥΝΟΛΟ ΚΑΘΑΡΗΣ ΘΕΣΗΣ ΚΑΙ ΥΠΟΧΡΕΩΣΕΩΝ | T30: =SUM(T29+T16) -> 1030810.05 | V30: =SUM(V29+V16) -> 1113696.01
B31: ΑΠΟΤΕΛΕΣΜΑΤΑ ΧΡΗΣΗΣ ΕΛΠ | R31: ΠΙΝΑΚΑΣ ΔΙΑΘΕΣΕΩΣ ΑΠΟΤΕΛΕΣΜΑΤΩΝ
I33: Χρήση 2016 | O33: Χρήση 2015 | T33: Χρήση 2016 | V33: Χρήση 2015
C34: Κύκλος εργασιών (καθαρός) | I34: 306794.5 | O34: 285095.6 | R34: Καθαρά αποτ/ματα(κέρδη)χρήσεως | T34: 5524.16 | V34: 2374.54
C35: Μεταβολές αποθεμάτων (εμπορεύματα-προϊόντα) | I35: -27763.16 | O35: 35371.5 | R35: Φόρος εισοδήματος | T35: 1602.01 | V35: 617.38
C36: Αγορές εμπορευμάτων | I36: 97272.01 | O36: 106296.58 | R36: Τακτικό αποθεματικό | T36: 148.55 | V36: 39.12
C37: Παροχές σε εργαζόμενους | I37: 102863.21 | O37: 120994.44
C38: Αποσβέσεις | I38: 19297.56 | O38: 19453.32 | R38: Κέρδη προς διάθεση | T38: =T34-T35-T36 -> 3773.6 | V38: =V34-V35-V36 -> 1718.04
C39: Λοιπά έξοδα και ζημιές | I39: 61724.03 | O39: 86458.15 | R39: Η διάθεση των κερδών γίνεται ως εξής:
C40: Λοιπά έσοδα και κέρδη | I40: 8296.84 | O40: 21965.44 | R40: Υπόλοιπο κερδών προηγ.χρήσεων | T40: 33273.19 | V40: 31555.15
C41: Αποτελέσματα προ τόκων και φόρων | I41: =I34+I35-I36-I37-I38-I39+I40 -> 6171.37 | O41: =O34+O35-O36-O37-O38-O39+O40 -> 9230.05 | R41: Υπόλοιπο κερδών σε νέο χρήσης | T41: 3773.6 | V41: 1718.04
C42: Χρεωστικοί τόκοι | I42: 647.21 | O42: 6855.51 | R42: Σύνολο: Υπόλοιπο κερδών σε νέο | T42: =SUM(T40:T41) -> 37046.79 | V42: =SUM(V40:V41) -> 33273.19
C43: Αποτελέσματα προ φόρων | I43: =I41-I42 -> 5524.16 | O43: =O41-O42 -> 2374.54
C44: Φόροι εισοδήματος | I44: 1602.01 | O44: 617.38
C45: Αποτελέσματα περιόδου μετά από φόρους | I45: =I43-I44 -> 3922.15 | O45: =O43-O44 -> 1757.16 | R45: Ηράκλειο, 30 Οκτωβρίου 2016
R46: Ο Πρόεδρος του Δ.Σ. | U46: Η Αντιπρόεδρος του Δ.Σ.
R47: ΠΑΠΑΔΟΓΙΑΝΝΑΚΗΣ ΖΑΧΑΡΙΑΣ | U47: ΠΑΠΑΔΟΓΙΑΝΝΑΚΗ ΜΑΡΙΑ
R48: ΑΔΤ ΑΒ 959849 | U48: ΑΔΤ ΑΒ 959863
R49: Ο Λογιστής
R50: ΦΑΣΟΥΛΑΚΗ ΜΑΡΙΑ - ΑΡ.Αδ. 79330
